Cogmind - Beta 14 @@@ ROGUE MODE // 2025.01.10 @ 17:12:54 Player: Nueadkie Result: Destroyed by 08-BP6(R) with Subdweller Laser Performance ------------- Evolutions (0) 0 Regions Visited (2) 400 Robots Destroyed (23) 115 Value Destroyed (333) 333 Prototype IDs (0) 0 Alien Tech Used (0) 0 Bonus (0) 0 TOTAL SCORE: 848 Bonus ------- None Cogmind --------- Core Integrity 0/250 Matter 87/300 Energy 250/250 System Corruption 1% Temperature Cool (6) Movement Treading (160) Location -10/Subcaves Parts ------- > --- POWER (1) -------- Ion Engine > --- PROPULSION (2) --- Light Treads Light Treads > --- UTILITY (2) ------ Medium Storage Unit Seismic Detector > --- WEAPON (2) ------- Beam Cannon Battle Cannon > --- INVENTORY (10) --- Subdweller Power Source Aluminum Leg Structural Scanner Subdweller Optics Light Armor Plating Assault Rifle Barrage Gun Grenade Launcher Multitool Peak State ------------ > --- POWER ------------ Light Ion Engine > --- PROPULSION ------- Aluminum Leg Aluminum Leg > --- UTILITY ---------- Medium Storage Unit Seismic Detector > --- WEAPON ----------- Barrage Gun Battle Cannon > --- INVENTORY -------- Ion Engine Subdweller Power Source Light Treads Light Treads Structural Scanner Light Armor Plating Beam Cannon Assault Rifle Grenade Launcher [Rating: 11] Favorites ----------- Power Light Ion Engine Engine Light Ion Engine Propulsion Aluminum Leg Treads Light Treads Leg Aluminum Leg Utility Seismic Detector Device Seismic Detector Storage Medium Storage Unit Protection Light Armor Plating Weapon Assault Rifle Energy Gun Medium Laser Energy Cannon Beam Cannon Ballistic Gun Assault Rifle Ballistic Cannon Battle Cannon Launcher Grenade Launcher Special Weapon Mining Laser Build | -11 -10 -10 ------- Run | Yrd Mat Sub Slots Evolved . | . . . Power . | . . . Propulsion . | . . . Utility . | . . . Weapon . | . . . Parts Attached 30 | 7 7 16 Power 2 | 1 . 1 Engine 2 | 1 . 1 Core . | . . . Reactor . | . . . Propulsion 4 | 2 . 2 Treads 2 | . . 2 Leg 2 | 2 . . Wheel . | . . . Hover . | . . . Flight . | . . . Utility 7 | 2 1 4 Device 3 | 1 . 2 Storage 2 | 1 1 . Processor . | . . . Hackware . | . . . Protection 2 | . . 2 Artifact . | . . . Weapon 17 | 2 6 9 Energy Gun 1 | 1 . . Energy Cannon 2 | . . 2 Ballistic Gun 7 | 1 3 3 Ballistic Cannon 2 | . . 2 Launcher 3 | . 2 1 Special Weapon 2 | . 1 1 Impact Weapon . | . . . Slashing Weapon . | . . . Piercing Weapon . | . . . Special Melee Weapon . | . . . Unidentified Prototypes . | . . . Parts Lost 3 | . . 3 Power 1 | . . 1 Propulsion 1 | . . 1 Utility 1 | . . 1 Weapon . | . . . Highest Loss Streak 2 | . . 2 To Critical Strikes . | . . . Average Slot Usage (%) 99 | . 99 98 Engine 14 | . 14 14 Treads 3 | . . 8 Leg 24 | . 28 19 Device 12 | . 14 11 Storage 14 | . 14 14 Protection 1 | . . 2 Energy Gun 1 | . 2 . Ballistic Gun 22 | . 23 20 Ballistic Cannon 2 | . . 4 Special Weapon 1 | . 1 1 Peak Build Rating 11 | 7 8 11 Average Rating 7 | 5 7 9 On Entrance 5 | . 7 8 Naked Turns . | . . . Heaviest Build 23 | 13 19 23 Greatest Support 40 | 20 20 40 Greatest Overweight (x) 4 | 4 . 1 Average Overweight (x) . | 1 . . Largest Inventory Capacity 10 | 8 10 10 Average Capacity 9 | 7 9 10 Most Carried 10 | 8 10 10 Average Carried 8 | 5 8 9 Final Capacity 10 | 8 10 10 Final Carried 10 | 8 10 9 Class Distribution -------------------- 100% | Mutant Dominant Class ---------------- Mutant | -10/Materials Mutant | -10/Subcaves Resources | -11 -10 -10 ----------- Run | Yrd Mat Sub Matter Collected 715 | 315 172 228 Remotely . | . . . Salvage Created 550 | 167 212 171 Parts 55 | 14 27 14 Haulers Intercepted 1 | . 1 . Recyclers Shooed . | . . . Parts Field Recycled . | . . . Retrieved Matter . | . . . Parts Self-Destructed 20 | . . 20 Prevented . | . . . Kills | -11 -10 -10 ------- Run | Yrd Mat Sub Combat Hostiles Destroyed 13 | . 6 7 Guns 7 | . 4 3 AOE 6 | . 2 4 Classes Destroyed 10 | 2 6 2 Builder 1 | . 1 . Tunneler 4 | 4 . . Hauler 1 | . 1 . Recycler 1 | 1 . . Operator 1 | . 1 . Watcher 2 | . 2 . Swarmer 9 | . 5 4 Grunt 1 | . 1 . Artisan 1 | . . 1 Subdweller 3 | . . 3 Best Kill Streak 4 | 3 3 4 Combat Bots Only 4 | . 3 4 Max Kills in Single Turn 2 | 1 1 2 Gunslinging . | . . . Exploded 2 | . 1 2 Melee . | . . . Uniques/NPCs Destroyed . | . . . Combat | -11 -10 -10 -------- Run | Yrd Mat Sub Hostile Shots Fired 67 | . 15 52 Missed 24 | . 6 18 Damage Taken 966 | . 202 764 Core 259 | . 107 152 Absorbed by Shields . | . . . Core Remaining (%) 100 | 100 . . Volleys Fired 90 | 15 33 42 Largest 2 | 2 2 2 Hottest 139 | 70 120 139 Shots Fired 162 | 30 65 67 Gun 134 | 30 62 42 Cannon 15 | . . 15 Launcher 4 | . 1 3 Special 9 | . 2 7 Kinetic 129 | 15 58 56 Thermal 29 | 15 6 8 Explosive 4 | . 1 3 Electromagnetic . | . . . Robot Hit Streak 9 | 5 4 9 Robot Miss Streak 4 | 2 4 4 Penetration Max . | . . . Secondary Targets 1 | . . 1 Max Gunslinging Chain 1 | . . 1 Shots Hit Robots 81 | 17 30 34 Core Hits 31 | 6 14 11 Critical Kills . | . . . Critical Parts Destroyed 2 | 2 . . Critical Strikes 5 | 3 1 1 Burn 2 | 1 1 . Destroy 2 | 2 . . Blast 1 | . . 1 Melee Attacks . | . . . Impact . | . . . Slashing . | . . . Piercing . | . . . Sneak Attacks . | . . . Combat Hostiles . | . . . Follow-up Attacks . | . . . Damage Inflicted 1381 | 201 456 724 Guns 1003 | 201 328 474 Cannons 27 | . . 27 Explosions 351 | . 128 223 Melee . | . . . Ramming . | . . . Kinetic 916 | 99 316 501 Thermal 114 | 102 12 . Explosive 351 | . 128 223 Electromagnetic . | . . . Impact . | . . . Slashing . | . . . Piercing . | . . . Highest Corruption 1 | . 1 1 Average Corruption 1 | . 1 1 Corruption Purged . | . . . Corruption Blocked . | . . . Effects 12 | . 6 6 Message Errors 2 | . 2 . Matter Fused 2 | . . 2 Heat Flow Errors 2 | . 2 . Energy Discharges 1 | . . 1 Data Loss (minor) 3 | . 2 1 Misfires 1 | . . 1 Alerts 1 | . . 1 Overload Shots . | . . . Overflow Damage 10 | . 10 . Projectiles . | . . . Explosions 10 | . 10 . Melee . | . . . Knockbacks . | . . . Impact . | . . . Kinetic . | . . . Secondary . | . . . Self-Inflicted Damage 83 | . . 83 Shots 2 | . . 2 Rammed . | . . . Targets Rammed . | . . . Kicked . | . . . Crushed . | . . . Highest Temperature 269 | 27 269 . Average Temperature 32 | 11 53 . Received Heat Transfer 156 | . 18 138 Siege Activations . | . . . Robots Corrupted . | . . . Combat Hostiles . | . . . Parts Fried . | . . . Impact Corruptions . | . . . Robots Melted . | . . . Combat Hostiles . | . . . Parts Melted . | . . . Heat Transferred 481 | 370 111 . Parts Sabotaged . | . . . Parts Stolen . | . . . Parts Stripped . | . . . Power Chain Reactions . | . . . Alert | -11 -10 -10 ------- Run | Yrd Mat Sub Peak Influence 159 | 25 159 . Initial 16 | . 16 . Average 64 | 8 82 . Maximum Alert Level . | . . . Low Security (%) 100 | 100 100 . Level 1 . | . . . Level 2 . | . . . Level 3 . | . . . Level 4 . | . . . Level 5 . | . . . High Security . | . . . Max Security . | . . . Squads Dispatched 1 | . 1 . Investigation . | . . . Extermination . | . . . Reinforcement 1 | . 1 . Assault . | . . . Garrison . | . . . Intercept . | . . . Searches Triggered . | . . . Construction Impeded . | . . . Haulers Reinforced . | . . . Active Scanning Responses . | . . . Cargo Convoy Interrupts . | . . . Stealth | -11 -10 -10 --------- Run | Yrd Mat Sub Distress Signals 1 | . 1 . Communications Jammed . | . . . Distress Signals . | . . . Times Spotted 27 | . 17 10 Peak Tracking Total 6 | . 4 6 Tactical Retreats 2 | . 1 1 Traps | -11 -10 -10 ------- Run | Yrd Mat Sub Traps Triggered 1 | . 1 . Indirectly . | . . . Trap Hack Attempts . | . . . Triggered . | . . . Disarmed . | . . . Reprogrammed . | . . . Reused . | . . . Traps Extracted . | . . . Installed . | . . . Triggered . | . . . Machines | -11 -10 -10 ---------- Run | Yrd Mat Sub Machines Disabled . | . . . Max in Single Turn . | . . . Machines Repaired . | . . . Machines Dismantled . | . . . Machines Sabotaged . | . . . Overloaded Fab Kills . | . . . Hacking | -11 -10 -10 --------- Run | Yrd Mat Sub Machines Accessed 3 | . 3 . Terminals 1 | . 1 . Fabricators . | . . . Repair Stations 1 | . 1 . Recycling Units 1 | . 1 . Scanalyzers . | . . . Garrison Access . | . . . Total Hacks 6 | . 6 . Successful 3 | . 3 . Failed 3 | . 3 . Catastrophic 1 | . 1 . Database Lockouts . | . . . Manual 4 | . 4 . Terminals 3 | . 3 . Fabricators . | . . . Repair Stations 2 | . 2 . Recycling Units 1 | . 1 . Scanalyzers . | . . . Garrison Access . | . . . Terminal Hacks . | . . . Fabricator Hacks . | . . . Repair Station Hacks 1 | . 1 . Scan Component 1 | . 1 . Recycling Unit Hacks 1 | . 1 . Report Inventory 1 | . 1 . Scanalyzer . | . . . Garrison Access Hacks . | . . . Unauthorized Hacks 1 | . 1 . Terminals 1 | . 1 . Operators 1 | . 1 . Fabricators . | . . . Repair Stations . | . . . Recycling Units . | . . . Scanalyzers . | . . . Garrison Access . | . . . Data Cores Recovered . | . . . Used . | . . . Hacking Detections 2 | . 2 . Full Trace Events . | . . . Feedback Events . | . . . Feedback Blocked . | . . . Robot Schematics Acquired . | . . . Robots Built . | . . . Authchips . | . . . Time . | . . . Total Robot Build Rating . | . . . Part Schematics Acquired . | . . . Parts Built . | . . . Authchips . | . . . Time . | . . . Total Part Build Rating . | . . . Parts Repaired . | . . . Time . | . . . Parts Recycled . | . . . Recycled Matter . | . . . Retrieved Matter . | . . . Retrieved Components . | . . . Parts Scanalyzed . | . . . Part Schematics Acquired . | . . . Parts Damaged . | . . . Bothacking | -11 -10 -10 ------------ Run | Yrd Mat Sub Used RIF Installer . | . . . Robots Hacked . | . . . Non-combat . | . . . Combat . | . . . Robot Hacks Applied . | . . . Relay Couplers Released . | . . . Fabnet Peak Effective % . | . . . Robots Rewired . | . . . Allies Hacked . | . . . Hacks Repelled . | . . . Allies | -11 -10 -10 -------- Run | Yrd Mat Sub Total Allies . | . . . Largest Group . | . . . Highest-Rated Group . | . . . Highest-Rated Ally . | . . . Total Orders . | . . . Ally Attacks . | . . . Total Damage . | . . . Kills . | . . . Allies Corrupted . | . . . Allies Melted . | . . . Intel | -11 -10 -10 ------- Run | Yrd Mat Sub Robot Analysis Total . | . . . Derelict Logs Recovered . | . . . Drone Launches . | . . . Drone Recoveries . | . . . Exploration | -11 -10 -10 ------------- Run | Yrd Mat Sub Turns Passed 1496 | 240 732 524 Spaces Moved 815 | 110 437 268 Core 63 | 63 . . Treads 67 | . . 67 Legs 685 | 47 437 201 Wheels . | . . . Hover . | . . . Flight . | . . . Fastest Speed 50 | 50 120 120 Average Speed 129 | 160 120 131 Slowest Speed 250 | 250 120 240 Overloaded Moves . | . . . Propulsion Burnouts . | . . . Robots Hopped . | . . . Cave-ins Triggered . | . . . Exploration Rate (%) 25 | 6 55 15 Regions Visited 2 Branch Regions 1 Pre-discovered Areas . | . . . Known Exits Taken . | . . . Unknown Exits Taken 2 | 1 1 . Scrap Searched . | . . . Spaces Dug . | . . . Terrain Destroyed 20 | . . 20 Melee . | . . . Projectile . | . . . AOE 20 | . . 20 Terrain Rammed . | . . . Walls Destroyed . | . . . Machines Disabled . | . . . Actions | -11 -10 -10 --------- Run | Yrd Mat Sub Total 1094 | 139 584 371 Wait 107 | . 89 18 Move 813 | 109 436 268 Hop . | . . . Pick Up 28 | 8 9 11 Fast Attach 7 | 7 . . Attach 22 | . 6 16 Detach 9 | . 2 7 Swap 1 | . 1 . Drop 17 | . 8 9 Fire 90 | 15 33 42 Melee . | . . . Ram . | . . . Kick . | . . . Crush . | . . . Escape Stasis . | . . . Rewire . | . . . Trap . | . . . Miscellaneous . | . . . Route ------- -11/Scrapyard -10/Materials (discovered 2 exits: [*Min] / [*Sub]) -10/Subcaves History --------- Turn | Location | Event 16 | -11/Scrapyard | Discovered new exit (range 15) 241 | -11/Scrapyard | Entered Materials 328 | -10/Materials | Build established: Mutant 649 | -10/Materials | Discovered new exit (range 7) 965 | -10/Materials | Discovered new exit (range 3) 973 | -10/Materials | Entered Subcaves 1076 | -10/Subcaves | Shifting Twisted Machinery released Battle Cannon 1076 | -10/Subcaves | Shifting Twisted Machinery released Barrage Gun 1134 | -10/Subcaves | Core integrity fell below 50% 1271 | -10/Subcaves | A swath of the cavern ceiling suddenly collapsed 1346 | -10/Subcaves | Core integrity fell below 20% 1497 | -10/Subcaves | Destroyed by 08-BP6(R) with Subdweller Laser Last Messages --------------- Detector. 01333_ Lgt. Ion Engine destroyed. 01344_ Subatomizers dissect the Seismic Detector. 01348_ TG-Y4E(R) destroyed. 01348_ Switching to secondary target: 2W-MYF(R). 01354_ 2W-MYF(R) destroyed. 01356_ Acquired Seismic Detector. 01358_ Subatomizers dissect the Sub. Optics. 01360_ Acquired 45 matter. 01362_ Acquired 47 matter. 01375_ System corrupted: FCS attempts to trigger Assault Rifle. 01375_ System corrupted: Assault Rifle misfires. 01375_ Acquired Sub. Optics. 01396_ Subatomizers dissect the Sub. Optics. 01414_ System corrupted: Matter fused (-5). 01484_ System corrupted: Matter fused (-6). 01495_ DM-GTU(R) Sub. Optics blasted off. Map ----- +----------------------------------------------------+ | ?????????????????????????????????????????????? | | ?????????????????????????????????????????????? | | ?????????????????????????????????????????????? | | ?????????????????????????????????????????????? | | ?????????????????????????????????????????????? | | ?????????????????????????????????????????????? | | ?????????????????????????????????????????????? | | ?????????????????????????????????????????????? | | ?????????????????????????????????????????????? | | ?????????????????????????????????????????????? | | ?????????????????????????????????????????????? | | ?????????????????????????????????????????????? | | ?????????????????????????????????????????????? | | ?????????????????????????????????????????????? | | ?????????????????????#####???????????????????? | | ?????????????????#? ##"""#???????????????????? | | ????????????????## """""##??????????????????? | | ????????????#####"""""""" ##?????????????????? | | ???????????##" ""#?#"" ##????????????????? | | ????????????"" ""###"" ##???????????????? | | ????????????#" """" " ##??????????????? | | ?????????????##"" " " ##?????????????? | | ??????????????#" "### % #?????????????? | | ?????????? """ "##?##RR #?????????????? | | ?????????? "" ##??## ##?????????????? | | ??????????## "#???#"@ #??????????????? | | ???????????## ""##???### ##?????????????? | | ????????????# ""#???????# #?????????????? | | ????????????##""#????????## ##?????????????? | | ?????????????###???????#### ##??????????????? | | ??????????????????????## # ""#???????????????? | | ?????????????????????## ""##??????????????? | | ?????????????????????# """#??????????????? | | ?????????????????????# # ""##??????????????? | | ?????????????????????#"" ## ##???????????????? | | ????????????????????###""# #???????????????? | | ????????????????????#""" ##???????????????? | | ????????????????????#" # ""#???????????????? | | ????????????????????## """##???????????????? | | ?????????????????????## "## #????????????????? | | ?????????????????????## "####????????????????? | | ?????????????????????#" ###??????????????????? | | ?????????????????????#" ""#??????????????????? | | ?????????????????????#" ="##?????????????????? | | ?????????????????????##! #?????????????????? | | ??????????????????????# ##?????????????????? | | ??????????????????????# "#?????????????????? | | ??????????????????????## ###???????????????? | | ???????????????????????## #???????????????? | | ????????????????????????## #???????????????? | +----------------------------------------------------+ Best States ------------- Heat Dissipation 25 Energy Generation 10 Energy Capacity 250 Matter Stores 300 Matter Capacity 300 Sight Range 16 Terrain Scan Density 10 Armor Coverage 150 Evasion (%) 55 Recoil Reduction 2 Item Schematics ----------------- None Robot Schematics ------------------ None Fabricated ------------ Nothing Alien Tech Used ----------------- None Achievements -------------- True Hacker Challenges ------------ None Game ------ Seed PotentialLobotomyBarrier Manual? 0 Play Time 00:18:42 Cumulative 20.7 hours Start 2025.01.10 @ 16:55:08 End 2025.01.10 @ 17:12:54 Sessions 1 Manual Loads 0 Difficulty Rogue Special Mode None Game No. 28 Rogue 28 Adventurer 0 Explorer 0 Win Type - Total 0 Types 0/0/0/0/0/0/0/0/0 Lore% 13 Gallery% 22 Achievement% 20 Wizard Run 0 Options --------- Layout 1 ASCII 0 Keyboard 1 Movement Vi Keybinds 0 Fullscreen 1 Font 24/Smallcaps Map View 50x35 Zoom Use 0% Tactical HUD 1 Map Filters NONE Filters NONE Steam 1 RUN: cb230ee2-5182-4db3-a396-6f1f8bf2311d